fUST/lending_fUST_20240724
["ID","MTS","AMOUNT","RATE_DAILY","PERIOD"]
[333058400,1721789449978,-151.0,0.00013698,2]
[333058401,1721789449988,-151.0,0.00013698,2]
[333058402,1721789449997,-151.0,0.00013698,2]
[333058403,1721789450008,-151.0,0.00013698,2]
[333058404,1721789450020,-296.951869,0.00013698,2]
[333058405,1721789450034,-151.0,0.00013698,2]
[333058406,1721789450044,-206.27879274,0.00013698,2]
[333058407,1721789450053,-296.951869,0.00013698,2]
[333058408,1721789450063,-151.0,0.00013698,2]
[333058409,1721789450073,-500.0,0.00013698,2]
[333058410,1721789450083,-296.951869,0.00013698,2]
[333058411,1721789450095,-261.695462,0.00013698,2]
[333058412,1721789450106,-500.0,0.00013698,2]
[333058413,1721789450116,-296.951869,0.00013698,2]
[333058414,1721789450127,-500.0,0.00013698,2]
[333058415,1721789450137,-500.0,0.00013698,2]
[333058416,1721789450147,-296.951869,0.00013698,2]
[333058417,1721789450157,-500.0,0.00013698,2]
[333058418,1721789450168,-296.951869,0.00013698,2]
[333058419,1721789450182,-500.0,0.00013698,2]
[333058420,1721789450193,-296.951869,0.00013698,2]
[333058421,1721789450204,-500.0,0.00013698,2]
[333058422,1721789450215,-500.0,0.00013698,2]
[333058423,1721789450228,-296.951869,0.00013698,2]
[333058424,1721789450239,-500.0,0.00013698,2]
[333058425,1721789450252,-3055.31,0.00013698,2]
[333058426,1721789450262,-296.951869,0.00013698,2]
[333058427,1721789450274,-500.0,0.00013698,2]
[333058428,1721789450288,-296.951869,0.00013698,2]
[333058429,1721789450302,-500.0,0.00013698,2]
[333058430,1721789450315,-296.951869,0.00013698,2]
[333058431,1721789450329,-500.0,0.00013698,2]
[333058432,1721789450342,-296.951869,0.00013698,2]
[333058433,1721789450353,-296.951869,0.00013698,2]
[333058434,1721789450364,-296.951869,0.00013698,2]
[333058435,1721789450375,-296.951869,0.00013698,2]
[333058436,1721789450387,-296.951869,0.00013698,2]
[333058437,1721789450398,-296.951869,0.00013698,2]
[333058438,1721789450411,-296.951869,0.00013698,2]
[333058439,1721789450423,-296.951869,0.00013698,2]
[333058440,1721789450435,-296.951862,0.00013698,2]
[333058441,1721789450448,-500.0,0.00013698,2]
[333058442,1721789450460,-500.0,0.00013698,2]
[333058443,1721789450474,-404.60584715,0.00013698,2]
[333058444,1721789450487,-504.74609235,0.00013698,2]
[333058445,1721789450499,-504.28971247,0.00013698,2]
[333058446,1721789450513,-2022.51,0.00013698,2]
[333058447,1721789450525,-500.0,0.00013698,2]
[333058448,1721789450536,-746.91,0.00013698,2]
[333058449,1721789450548,-500.0,0.00013698,2]
[333058450,1721789450559,-5062.56,0.00013698,2]
[333058451,1721789450570,-1708.43,0.00013698,2]
[333058452,1721789450582,-371.88809967,0.00013698,2]
[333058453,1721789450594,-500.0,0.00013698,2]
[333058454,1721789450608,-500.0,0.00013698,2]
[333058455,1721789450620,-1109.26,0.00013698,2]
[333058456,1721789450632,-500.0,0.00013698,2]
[333058457,1721789450642,-500.0,0.00013698,2]
[333058458,1721789450653,-737.15,0.00013698,2]
[333058459,1721789450664,-500.0,0.00013698,2]
[333058460,1721789450677,-6545.6,0.00013698,2]
[333058461,1721789450687,-500.0,0.00013698,2]
[333058462,1721789450699,-500.0,0.00013698,2]
[333058463,1721789450711,-1981.3,0.00013698,2]
[333058464,1721789450722,-500.0,0.00013698,2]
[333058465,1721789450736,-500.0,0.00013698,2]
[333058466,1721789450747,-500.0,0.00013698,2]
[333058467,1721789450758,-500.0,0.00013698,2]
[333058468,1721789450771,-522.18,0.00013698,2]
[333058469,1721789450784,-640.33,0.00013698,2]
[333058470,1721789450796,-500.0,0.00013698,2]
[333058471,1721789450808,-16480.44,0.00013698,2]
[333058472,1721789450820,-428.1090503,0.00013698,2]
[333058473,1721789450830,-500.0,0.00013698,2]
[333058474,1721789450841,-500.0,0.00013698,2]
[333058475,1721789450852,-8314.01,0.00013698,2]
[333058476,1721789450862,-508.08236004,0.00013698,2]
[333058477,1721789450873,-529.23,0.00013698,2]
[333058478,1721789450883,-1833.64,0.00013698,2]
[333058479,1721789450895,-500.0,0.00013698,2]
[333058480,1721789450907,-7569.69,0.00013698,2]
[333058481,1721789450919,-151.0,0.00013698,2]
[333058482,1721789450932,-153.020149,0.00013698,2]
[333058483,1721789450942,-2331.0,0.00013698,2]
[333058484,1721789450952,-1616.15,0.00013698,2]
[333058485,1721789450963,-505.37510878,0.00013698,2]
[333058486,1721789450977,-3550.42,0.00013698,2]
[333058487,1721789450989,-4596.8,0.00013698,2]
[333058488,1721789451000,-500.0,0.00013698,2]
[333058489,1721789451016,-3098.38,0.00013698,2]
[333058490,1721789451027,-500.0,0.00013698,2]
[333058491,1721789451037,-1162.97,0.00013698,2]
[333058492,1721789451047,-633.52,0.00013698,2]
[333058493,1721789451058,-11878.84,0.00013698,2]
[333058494,1721789451068,-500.0,0.00013698,2]
[333058495,1721789451079,-506.53507268,0.00013698,2]
[333058496,1721789451090,-1599.36,0.00013698,2]
[333058497,1721789451101,-500.0,0.00013698,2]
[333058498,1721789451113,-7989.09,0.00013698,2]
[333058499,1721789451124,-500.0,0.00013698,2]
[333058500,1721789451135,-740.72,0.00013698,2]
[333058501,1721789451146,-500.0,0.00013698,2]
[333058502,1721789451157,-500.0,0.00013698,2]
[333058503,1721789451169,-595.358345,0.00013698,2]
[333058504,1721789451183,-500.0,0.00013698,2]
[333058505,1721789451194,-595.358345,0.00013698,2]
[333058506,1721789451205,-595.358345,0.00013698,2]
[333058507,1721789451215,-595.358345,0.00013698,2]
[333058508,1721789451230,-500.0,0.00013698,2]
[333058509,1721789451240,-595.358345,0.00013698,2]
[333058510,1721789451254,-595.358345,0.00013698,2]
[333058511,1721789451265,-6873.52,0.00013698,2]
[333058512,1721789451275,-595.358345,0.00013698,2]
[333058513,1721789451286,-791.11,0.00013698,2]
[333058514,1721789451296,-595.358345,0.00013698,2]
[333058515,1721789451308,-595.358345,0.00013698,2]
[333058516,1721789451321,-595.358345,0.00013698,2]
[333058517,1721789451332,-595.358345,0.00013698,2]
[333058518,1721789451344,-500.0,0.00013698,2]
[333058519,1721789451355,-595.358345,0.00013698,2]
[333058520,1721789451366,-595.358345,0.00013698,2]
[333058521,1721789451378,-595.358345,0.00013698,2]
[333058522,1721789451388,-595.358345,0.00013698,2]
[333058523,1721789451399,-595.358345,0.00013698,2]
[333058524,1721789451411,-1509.78,0.00013698,2]
[333058525,1721789451423,-595.358345,0.00013698,2]
[333058526,1721789451434,-500.0,0.00013698,2]
[333058527,1721789451445,-595.358345,0.00013698,2]
[333058528,1721789451457,-595.358345,0.00013698,2]
[333058529,1721789451468,-500.0,0.00013698,2]
[333058530,1721789451482,-595.358347,0.00013698,2]
[333058531,1721789451493,-500.0,0.00013698,2]
[333058532,1721789451503,-2037.02,0.00013698,2]
[333058533,1721789451513,-970.90552,0.00013698,2]
[333058534,1721789451524,-2036.19,0.00013698,2]
[333058535,1721789451536,-970.90552,0.00013698,2]
[333058536,1721789451547,-970.90552,0.00013698,2]
[333058537,1721789451559,-970.90552,0.00013698,2]
[333058538,1721789451569,-970.90552,0.00013698,2]
[333058539,1721789451581,-970.90552,0.00013698,2]
[333058540,1721789451591,-970.90552,0.00013698,2]
[333058541,1721789451602,-970.90552,0.00013698,2]
[333058542,1721789451613,-648.63,0.00013698,2]
[333058543,1721789451623,-970.90552,0.00013698,2]
[333058544,1721789451634,-970.90552,0.00013698,2]
[333058545,1721789451645,-970.90552,0.00013698,2]
[333058546,1721789451656,-970.90552,0.00013698,2]
[333058547,1721789451667,-970.90552,0.00013698,2]
[333058548,1721789451678,-500.0,0.00013698,2]
[333058549,1721789451690,-970.90552,0.00013698,2]
[333058550,1721789451702,-970.90552,0.00013698,2]
[333058551,1721789451714,-970.90552,0.00013698,2]
[333058552,1721789451728,-970.90552,0.00013698,2]
[333058553,1721789451740,-970.90552,0.00013698,2]
[333058554,1721789451752,-970.90552,0.00013698,2]
[333058555,1721789451765,-151.0,0.00013698,2]
[333058556,1721789451777,-970.905515,0.00013698,2]
[333058557,1721789451789,-151.0,0.00013698,2]
[333058558,1721789451802,-2449.86,0.00013698,2]
[333058559,1721789451814,-151.0,0.00013698,2]
[333058560,1721789451828,-151.0,0.00013698,2]
[333058561,1721789451839,-2053.6943345,0.00013698,2]
[333058562,1721789451852,-230.620817,0.00013698,2]
[333058563,1721789451864,-600.56,0.00013698,2]
[333058564,1721789451878,-153.593061,0.00013698,2]
[333058565,1721789451890,-153.593061,0.00013698,2]
[333058566,1721789451902,-153.593061,0.00013698,2]
[333058567,1721789451913,-153.593061,0.00013698,2]
[333058568,1721789451925,-153.593061,0.00013698,2]
[333058569,1721789451937,-153.593061,0.00013698,2]
[333058570,1721789451948,-502.95707229,0.00013698,2]
[333058571,1721789451961,-153.593061,0.00013698,2]
[333058572,1721789451974,-153.593061,0.00013698,2]
[333058573,1721789451986,-153.593061,0.00013698,2]
[333058574,1721789451999,-153.593061,0.00013698,2]
[333058575,1721789452011,-644.93,0.00013698,2]
[333058576,1721789452025,-153.593061,0.00013698,2]
[333058577,1721789452037,-153.593061,0.00013698,2]
[333058578,1721789452049,-153.593061,0.00013698,2]
[333058579,1721789452063,-153.593061,0.00013698,2]
[333058580,1721789452074,-500.0,0.00013698,2]
[333058581,1721789452087,-153.593061,0.00013698,2]
[333058582,1721789452100,-153.593061,0.00013698,2]
[333058583,1721789452111,-153.593061,0.00013698,2]
[333058584,1721789452124,-2226.39,0.00013698,2]
[333058585,1721789452136,-153.593061,0.00013698,2]
[333058586,1721789452147,-153.593061,0.00013698,2]
[333058587,1721789452159,-153.59306,0.00013698,2]
[333058588,1721789452173,-1472.71,0.00013698,2]
[333058589,1721789452186,-1342.09,0.00013698,2]
[333058590,1721789452199,-500.0,0.00013698,2]
[333058591,1721789452212,-11013.43,0.00013698,2]
[333058592,1721789452226,-500.0,0.00013698,2]
[333058593,1721789452237,-500.0,0.00013698,2]
[333058594,1721789452248,-4486.56,0.00013698,2]
[333058595,1721789452259,-198.045389,0.00013698,2]
[333058596,1721789452272,-198.045389,0.00013698,2]
[333058597,1721789452283,-198.045389,0.00013698,2]
[333058598,1721789452297,-198.045389,0.00013698,2]
[333058599,1721789452308,-198.045389,0.00013698,2]
[333058600,1721789452319,-500.0,0.00013698,2]
[333058601,1721789452331,-198.045389,0.00013698,2]
[333058602,1721789452343,-500.0,0.00013698,2]
[333058603,1721789452355,-198.045389,0.00013698,2]
[333058604,1721789452367,-500.0,0.00013698,2]
[333058605,1721789452378,-198.045389,0.00013698,2]
[333058606,1721789452390,-500.0,0.00013698,2]
[333058607,1721789452402,-198.045389,0.00013698,2]
[333058608,1721789452414,-198.045389,0.00013698,2]
[333058609,1721789452425,-198.045389,0.00013698,2]
[333058610,1721789452436,-198.045389,0.00013698,2]
[333058611,1721789452448,-198.045389,0.00013698,2]
[333058612,1721789452460,-198.045389,0.00013698,2]
[333058613,1721789452472,-198.045389,0.00013698,2]
[333058614,1721789452486,-198.045389,0.00013698,2]
[333058615,1721789452499,-198.045389,0.00013698,2]
[333058616,1721789452510,-198.045389,0.00013698,2]
[333058617,1721789452521,-198.045389,0.00013698,2]
[333058618,1721789452533,-198.04538214,0.00013698,2]
[333058619,1721789452544,-500.0,0.00013698,2]
[333058620,1721789452554,-2299.33,0.00013698,2]
[333058621,1721789452565,-500.0,0.00013698,2]
[333058622,1721789452577,-500.0,0.00013698,2]
[333058623,1721789452592,-689.73,0.00013698,2]
[333058624,1721789452603,-500.0,0.00013698,2]
[333058625,1721789452614,-989.73,0.00013698,2]
[333058626,1721789452625,-252.165496,0.00013698,2]
[333058627,1721789452636,-252.165496,0.00013698,2]
[333058628,1721789452647,-1532.55,0.00013698,2]
[333058629,1721789452658,-252.165496,0.00013698,2]
[333058630,1721789452669,-252.165496,0.00013698,2]
[333058631,1721789452679,-252.165496,0.00013698,2]
[333058632,1721789452689,-500.0,0.00013698,2]
[333058633,1721789452699,-252.165496,0.00013698,2]
[333058634,1721789452709,-252.165496,0.00013698,2]
[333058635,1721789452720,-252.165496,0.00013698,2]
[333058636,1721789452982,-252.165496,0.00013698,2]
[333058637,1721789452996,-618.53,0.00013698,2]
[333058638,1721789453006,-252.165496,0.00013698,2]
[333058639,1721789453015,-252.165496,0.00013698,2]
[333058640,1721789453024,-252.165496,0.00013698,2]
[333058641,1721789453033,-500.0,0.00013698,2]
[333058642,1721789453043,-252.165496,0.00013698,2]
[333058643,1721789453054,-252.165496,0.00013698,2]
[333058644,1721789453063,-500.0,0.00013698,2]
[333058645,1721789453074,-252.165496,0.00013698,2]
[333058646,1721789453085,-252.165496,0.00013698,2]
[333058647,1721789453096,-252.165496,0.00013698,2]
[333058648,1721789453108,-252.165496,0.00013698,2]
[333058649,1721789453119,-252.165496,0.00013698,2]
[333058650,1721789453129,-151.0,0.00013698,2]
[333058651,1721789453139,-252.165488,0.00013698,2]
[333058652,1721789453149,-176.888045,0.00013698,2]
[333058653,1721789453161,-1041.2,0.00013698,2]
[333058654,1721789453172,-1071.17,0.00013698,2]
[333058655,1721789453186,-280.7862289,0.00013698,2]
[333058656,1721789453197,-500.0,0.00013698,2]
[333058657,1721789453208,-484.55361711,0.00013698,2]
[333058658,1721789453221,-500.0,0.00013698,2]
[333058659,1721789453234,-544.69614804,0.00013698,2]
[333058660,1721789453243,-500.0,0.00013698,2]
[333058661,1721789453254,-500.0,0.00013698,2]
[333058662,1721789453263,-544.69614804,0.00013698,2]
[333058663,1721789453272,-300.88982747,0.00013698,2]
[333058664,1721789453282,-544.69614804,0.00013698,2]
[333058665,1721789453291,-500.0,0.00013698,2]
[333058666,1721789453301,-544.69614804,0.00013698,2]
[333058667,1721789453311,-544.69614804,0.00013698,2]
[333058668,1721789453320,-544.69614804,0.00013698,2]
[333058669,1721789453330,-500.0,0.00013698,2]
[333058670,1721789453340,-544.69614804,0.00013698,2]
[333058671,1721789453349,-500.0,0.00013698,2]
[333058672,1721789453359,-544.69614804,0.00013698,2]
[333058673,1721789453368,-290.83571095,0.00013698,2]
[333058674,1721789453378,-510.43051071,0.00013698,2]
[333058675,1721789453387,-544.69614804,0.00013698,2]
[333058676,1721789453397,-544.69614804,0.00013698,2]
[333058677,1721789453406,-500.0,0.00013698,2]
[333058678,1721789453416,-544.69614804,0.00013698,2]
[333058679,1721789453425,-500.0,0.00013698,2]
[333058680,1721789453435,-5251.89,0.00013698,2]
[333058681,1721789453444,-544.69614804,0.00013698,2]
[333058682,1721789453454,-500.0,0.00013698,2]
[333058683,1721789453466,-500.0,0.00013698,2]
[333058684,1721789453479,-544.69614804,0.00013698,2]
[333058685,1721789453491,-500.0,0.00013698,2]
[333058686,1721789453503,-500.0,0.00013698,2]
[333058687,1721789453513,-305.59327172,0.00013698,2]
[333059049,1721789525143,404.3074502,9.999e-05,2]
[333059050,1721789527294,154.98506355,9.999e-05,2]
[333059051,1721789529785,155.97698715,9.999e-05,2]
[333059052,1721789537384,318.07462538,9.999e-05,2]
[333059060,1721789836068,-663.51231387,9.999e-05,2]
[333059061,1721789852104,-200.0,0.00013425,2]
[333059062,1721789852129,-1249.08235221,0.00013598,2]
[333059063,1721789852158,-960.28366802,0.00013688,2]
[333059064,1721789852183,-300.0,0.00013697,2]
[333059065,1721789852208,-500.0,0.00013698,2]
[333059066,1721789852232,-613.25,0.00013698,2]
[333059067,1721789852258,-452.49143429,0.00013698,2]
[333059068,1721789852283,-500.0,0.00013698,2]
[333059069,1721789852310,-500.0,0.00013698,2]
[333059070,1721789852335,-512.63854156,0.00013698,2]
[333059071,1721789852362,-500.0,0.00013698,2]
[333059072,1721789852389,-1747.17,0.00013698,2]
[333059073,1721789852415,-500.0,0.00013698,2]
[333059074,1721789852438,-4020.12,0.00013698,2]
[333059075,1721789852462,-500.0,0.00013698,2]
[333059076,1721789852487,-500.0,0.00013698,2]
[333059077,1721789852512,-500.0,0.00013698,2]
[333059078,1721789852538,-789.71,0.00013698,2]
[333059079,1721789852564,-500.0,0.00013698,2]
[333059080,1721789852590,-534.9345491,0.00013698,2]
[333059081,1721789852617,-507.51431982,0.00013698,2]
[333059082,1721789852646,-222.98377898,0.00013698,2]
[333059083,1721789852669,-3045.82,0.00013698,2]
[333059084,1721789852693,-500.0,0.00013698,2]
[333059085,1721789852718,-500.0,0.00013698,2]
[333059086,1721789852741,-500.0,0.00013698,2]
[333059087,1721789852766,-507.92105026,0.00013698,2]
[333059088,1721789852790,-549.77,0.00013698,2]
[333059089,1721789852815,-500.0,0.00013698,2]
[333059090,1721789852837,-500.0,0.00013698,2]
[333059091,1721789852860,-500.0,0.00013698,2]
[333059092,1721789852884,-500.0,0.00013698,2]
[333059093,1721789852908,-1457.07,0.00013698,2]
[333059094,1721789852931,-500.0,0.00013698,2]
[333059095,1721789852957,-588.49,0.00013698,2]
[333059096,1721789852982,-1588.12,0.00013698,2]
[333059097,1721789853008,-500.0,0.00013698,2]
[333059098,1721789853032,-500.0,0.00013698,2]
[333059099,1721789853055,-500.0,0.00013698,2]
[333059100,1721789853081,-791.43,0.00013698,2]
[333059101,1721789853109,-2114.43,0.00013698,2]
[333059102,1721789853133,-505.08259757,0.00013698,2]
[333059103,1721789853157,-500.0,0.00013698,2]
[333059104,1721789853184,-1394.76,0.00013698,2]
[333059105,1721789853208,-500.0,0.00013698,2]
[333059106,1721789853233,-661.98,0.00013698,2]
[333059107,1721789853259,-500.0,0.00013698,2]
[333059108,1721789853283,-508.33930975,0.00013698,2]
[333059109,1721789853310,-1285.3,0.00013698,2]
[333059110,1721789853336,-1833.5,0.00013698,2]
[333059111,1721789853521,-500.0,0.00013698,2]
[333059112,1721789853547,-1182.56,0.00013698,2]
[333059113,1721789853573,-500.0,0.00013698,2]
[333059114,1721789853598,-473.90782166,0.00013698,2]
[333059115,1721789853623,-500.0,0.00013698,2]
[333059116,1721789853650,-4362.13,0.00013698,2]
[333059117,1721789853674,-1952.15,0.00013698,2]
[333059118,1721789853702,-699.44,0.00013698,2]
[333059119,1721789853727,-650.6,0.00013698,2]
[333059120,1721789853754,-500.0,0.00013698,2]
[333059121,1721789853777,-1411.34,0.00013698,2]
[333059122,1721789853802,-948.49,0.00013698,2]
[333059123,1721789853826,-2347.78,0.00013698,2]
[333059124,1721789853850,-2276.55,0.00013698,2]
[333059125,1721789853875,-500.0,0.00013698,2]
[333059126,1721789853900,-875.97,0.00013698,2]
[333059127,1721789853925,-748.67,0.00013698,2]
[333059128,1721789853951,-500.0,0.00013698,2]
[333059129,1721789853977,-265.21469375,0.00013698,2]
[333059130,1721789854002,-1347.85,0.00013698,2]
[333059131,1721789854026,-997.82,0.00013698,2]
[333059132,1721789854051,-1946.41,0.00013698,2]
[333059133,1721789854075,-500.0,0.00013698,2]
[333059134,1721789854101,-500.0,0.00013698,2]
[333059135,1721789854126,-500.0,0.00013698,2]
[333059136,1721789854152,-500.0,0.00013698,2]
[333059137,1721789854176,-500.0,0.00013698,2]
[333059138,1721789854202,-1286.17,0.00013698,2]
[333059139,1721789854227,-10554.54,0.00013698,2]
[333059140,1721789854253,-500.0,0.00013698,2]
[333059141,1721789854277,-511.05725269,0.00013698,2]
[333059142,1721789854304,-500.0,0.00013698,2]
[333059143,1721789854329,-500.0,0.00013698,2]
[333059144,1721789854355,-624.33,0.00013698,2]
[333059145,1721789854382,-2203.53,0.00013698,2]
[333059146,1721789854406,-500.0,0.00013698,2]
[333059147,1721789854430,-500.0,0.00013698,2]
[333059148,1721789854457,-3357.63,0.00013698,2]
[333059149,1721789854482,-500.0,0.00013698,2]
[333059150,1721789854508,-500.0,0.00013698,2]
[333059151,1721789854534,-500.0,0.00013698,2]
[333059152,1721789854560,-1571.73,0.00013698,2]
[333059153,1721789854586,-500.0,0.00013698,2]
[333059154,1721789854611,-592.76,0.00013698,2]
[333059155,1721789854638,-500.0,0.00013698,2]
[333059156,1721789854665,-1468.7,0.00013698,2]
[333059157,1721789854690,-758.52,0.00013698,2]
[333059158,1721789854716,-1788.14,0.00013698,2]
[333059159,1721789854742,-500.0,0.00013698,2]
[333059160,1721789854768,-500.0,0.00013698,2]
[333059161,1721789854794,-558.68724243,0.00013698,2]
[333059162,1721789854819,-1081.06,0.00013698,2]
[333059163,1721789854845,-1167.12,0.00013698,2]
[333059164,1721789854871,-612.03,0.00013698,2]
[333059165,1721789854896,-5033.06,0.00013698,2]
[333059166,1721789854923,-500.0,0.00013698,2]
[333059167,1721789854951,-4307.27,0.00013698,2]
[333059168,1721789854977,-500.0,0.00013698,2]
[333059169,1721789855003,-500.0,0.00013698,2]
[333059170,1721789855028,-500.0,0.00013698,2]
[333059171,1721789855053,-1443.81,0.00013698,2]
[333059172,1721789855077,-1411.32,0.00013698,2]
[333059173,1721789855103,-1759.37,0.00013698,2]
[333059174,1721789855128,-404.62539218,0.00013698,2]
[333059175,1721789855154,-720.9,0.00013698,2]
[333059176,1721789855181,-500.0,0.00013698,2]
[333059177,1721789855206,-500.0,0.00013698,2]
[333059178,1721789855232,-1367.19,0.00013698,2]
[333059179,1721789855257,-2453.51,0.00013698,2]
[333059180,1721789855281,-538.79,0.00013698,2]
[333059181,1721789855307,-511.76,0.00013698,2]
[333059182,1721789855333,-500.0,0.00013698,2]
[333059183,1721789855360,-2928.0,0.00013698,2]
[333059184,1721789855385,-500.0,0.00013698,2]
[333059185,1721789855410,-512.38206662,0.00013698,2]
[333059186,1721789855435,-500.0,0.00013698,2]
[333059187,1721789855459,-927.49,0.00013698,2]
[333059188,1721789855485,-500.0,0.00013698,2]
[333059189,1721789855510,-512.18768842,0.00013698,2]
[333059190,1721789855536,-1938.24,0.00013698,2]
[333059191,1721789855561,-706.44,0.00013698,2]
[333059192,1721789855585,-2454.04,0.00013698,2]
[333059193,1721789855612,-4851.62,0.00013698,2]
[333059194,1721789855637,-510.83796348,0.00013698,2]
[333059195,1721789855662,-500.0,0.00013698,2]
[333059196,1721789855688,-500.0,0.00013698,2]
[333059197,1721789855714,-500.0,0.00013698,2]
[333059198,1721789855741,-500.0,0.00013698,2]
[333059199,1721789855768,-1898.74,0.00013698,2]
[333059200,1721789855795,-511.11611016,0.00013698,2]
[333059201,1721789855821,-580.21,0.00013698,2]
[333059202,1721789855853,-500.0,0.00013698,2]
[333059203,1721789855880,-6272.87,0.00013698,2]
[333059204,1721789855903,-1087.29,0.00013698,2]
[333059205,1721789855929,-500.0,0.00013698,2]
[333059206,1721789855952,-500.0,0.00013698,2]
[333059207,1721789855977,-500.0,0.00013698,2]
[333059208,1721789856002,-500.0,0.00013698,2]
[333059209,1721789856029,-622.85,0.00013698,2]
[333059210,1721789856055,-500.0,0.00013698,2]
[333059211,1721789856081,-500.0,0.00013698,2]
[333059212,1721789856111,-7967.59,0.00013698,2]
[333059213,1721789856138,-350.21205041,0.00013698,2]
[333059214,1721789856163,-613.65,0.00013698,2]
[333059215,1721789856190,-528.01,0.00013698,2]
[333059216,1721789856215,-1757.24,0.00013698,2]
[333059217,1721789856241,-15793.75,0.00013698,2]
[333059218,1721789856269,-500.0,0.00013698,2]
[333059219,1721789856293,-506.317492,0.00013698,2]
[333059220,1721789856320,-4405.27,0.00013698,2]
[333059221,1721789856345,-1195.27,0.00013698,2]
[333059222,1721789856406,-500.0,0.00013698,2]
[333059223,1721789856429,-339.18753198,0.00013698,2]
[333059224,1721789856455,-500.0,0.00013698,2]
[333059225,1721789856480,-410.62287923,0.00013698,2]
[333059226,1721789856506,-500.0,0.00013698,2]
[333059227,1721789856531,-500.0,0.00013698,2]
[333059228,1721789856559,-500.0,0.00013698,2]
[333059229,1721789856582,-500.0,0.00013698,2]
[333059230,1721789856614,-500.0,0.00013698,2]
[333059231,1721789856638,-203.58499767,0.00013698,2]
[333059232,1721789856664,-500.0,0.00013698,2]
[333059233,1721789856691,-463.63759336,0.00013698,2]
[333059234,1721789856715,-334.40470103,0.00013698,2]
[333059235,1721789856743,-500.0,0.00013698,2]
[333059236,1721789856766,-500.0,0.00013698,2]
[333059237,1721789856794,-500.0,0.00013698,2]
[333059238,1721789856827,-500.0,0.00013698,2]
[333059239,1721789856852,-500.0,0.00013698,2]
[333059240,1721789856877,-500.0,0.00013698,2]
[333059241,1721789856901,-500.0,0.00013698,2]
[333059242,1721789856925,-500.0,0.00013698,2]
[333059243,1721789856951,-500.0,0.00013698,2]
[333059244,1721789856975,-609.72408223,0.00013698,2]
[333059245,1721789857000,-500.0,0.00013698,2]
[333059246,1721789857027,-401.51656135,0.00013698,2]
[333059247,1721789857053,-500.0,0.00013698,2]
[333059248,1721789857081,-500.0,0.00013698,2]
[333059249,1721789857108,-500.0,0.00013698,2]
[333059250,1721789857136,-500.0,0.00013698,2]
[333059251,1721789857160,-500.0,0.00013698,2]
[333059252,1721789857186,-215.10041668,0.00013698,2]
[333059253,1721789857211,-500.0,0.00013698,2]
[333059254,1721789857236,-500.0,0.00013698,2]
[333059255,1721789857263,-500.0,0.00013698,2]
[333059256,1721789857288,-500.0,0.00013698,2]
[333059257,1721789857318,-500.0,0.00013698,2]
[333059258,1721789857344,-500.0,0.00013698,2]
[333059259,1721789857370,-500.0,0.00013698,2]
[333059260,1721789857396,-500.0,0.00013698,2]
[333059261,1721789857422,-500.0,0.00013698,2]
[333059262,1721789857450,-500.0,0.00013698,2]
[333059263,1721789857475,-500.0,0.00013698,2]
[333059264,1721789857501,-500.0,0.00013698,2]
[333059265,1721789857527,-1114.51,0.00013698,2]
[333059266,1721789857551,-196.55036023,0.00013698,2]
[333059267,1721789857574,-500.0,0.00013698,2]